[Event "15th Chennai GM Open 2025"]
[Site "Chennai"]
[Date "2025.01.07"]
[Round "8.10"]
[White "Ajay Santhosh Parvathareddy"]
[Black "Vijay Shreeram P"]
[Result "1-0"]
[ECO "A96"]
[WhiteElo "2292"]
[BlackElo "2025"]
[Annotator "TA"]
[PlyCount "107"]
[EventDate "2025.01.02"]
[EventType "swiss"]
[EventCountry "IND"]
[SourceTitle "playchess.com"]
[Source "ChessBase"]
[SourceQuality "1"]
[TimeControl "5400+30"]

{[%evp 13,107,37,43,67,76,51,53,38,41,34,37,38,40,33,47,50,81,71,66,49,101,81,88,41,111,122,138,114,109,126,134,104,132,98,118,67,93,39,37,33,38,39,77,55,177,185,193,190,183,190,143,211,213,205,212,211,206,207,198,178,239,239,238,228,227,190,216,214,205,143,143,143,222,241,308,161,304,290,590,469,500,485,1072,1072,1370,1297,1035,0,0,0,0,0,29991,29992,29992,29993]} 1. d4 {[%emt 0:00:02]} f5 {[%emt 0:00:57]} 2. g3 {[%emt 0:00:13]} Nf6 {[%emt 0:00:20]} 3. Bg2 {[%emt 0:00:06]} e6 {[%emt 0:00:08]} 4. Nf3 {[%emt 0:00:02]} Be7 {[%emt 0:00:08]} 5. O-O {[%emt 0:00:06]} O-O {[%emt 0:00:06]} 6. c4 {[%emt 0:00:01]} d6 {[%emt 0:00:08][%cal Bd7d6,Bd6d5][%mdl 32]} 7. Nc3 {[%emt 0:00:03]} Ne4 {[%emt 0:00:07]} 8. Nxe4 {[%emt 0:00:05]} fxe4 {[%emt 0:00:06]} 9. Ne1 {[%emt 0:00:03]} d5 {[%emt 0:00:07]} 10. Be3 {[%emt 0:00:03]} Nd7 {[%emt 0:00:07]} 11. Qc2 {[%emt 0:00:04]} c6 {[%emt 0:00:50]} 12. f3 {[%emt 0:00:18]} Bg5 {[%emt 0:00:21]} 13. Bxg5 {[%emt 0:03:17]} Qxg5 {[%emt 0:00:03]} 14. Qc3 {[%emt 0:00:20] Dodges Qe3+} dxc4 {[%emt 0:28:16]} 15. fxe4 {[%emt 0:04:02]} Rxf1+ {[%emt 0:00:19]} 16. Kxf1 {[%emt 0:00:31]} Nf6 {[%emt 0:14:07]} (16... b5 $14) 17. Nf3 $36 {[%emt 0:00:37][%mdl 2048] Black is under strong pressure.} (17. Qxc4 Ng4 18. Qd3 Nxh2+ 19. Kg1 Ng4 $11) 17... Qh6 {[%emt 0:02:01]} 18. Qc1 {[%emt 0:08:18]} (18. e5 $16 Nd5 19. Qc1) 18... Qh5 {[%emt 0:09:21]} (18... Qxc1+ $14 19. Rxc1 Nxe4) 19. e5 {[%emt 0:14:01]} Nd5 {[%emt 0:01:52]} 20. e4 {[%emt 0:00:06]} (20. Qxc4 $2 Ne3+ 21. Kf2 Nxc4 $19) 20... Nb6 {[%emt 0:01:26]} 21. Qc3 {[%emt 0:01:23]} Bd7 {[%emt 0:03:26]} 22. Kg1 {[%emt 0:05:28]} Rf8 {[%emt 0:05:08]} 23. Re1 {[%emt 0:02:57]} Be8 {[%emt 0:08:11]} 24. Nd2 {[%emt 0:01:15]} (24. a4 $16) 24... Qg5 {[%emt 0:06:10]} 25. Nxc4 {[%emt 0:00:59]} ({Better is} 25. Bh3 $16) 25... Nxc4 $14 {[%emt 0:00:39]} 26. Qxc4 {[%emt 0:00:07]} Qd2 $1 {[%emt 0:01:08][%csl LRb2,LRe1] ( -> ...Qf2+)} 27. Qc3 {[%emt 0:00:09]} (27. Qxe6+ $2 Bf7 28. Qf5 Qxe1+ $19) 27... Rf2 {[%emt 0:02:01]} 28. Bh3 {[%emt 0:01:36]} Bf7 {[%emt 0:05:24] [#]} ({Black should play} 28... Bd7 $14) 29. d5 $1 $18 {[%emt 0:01:21][%mdl 512]} Rxh2 {[%emt 0:02:49]} 30. Qxd2 {[%emt 0:02:26]} (30. Bxe6 $2 Qg2#) 30... Rxd2 {[%emt 0:00:03]} 31. dxe6 {[%emt 0:00:27][%mdl 4096] Endgame KRB-KRB. White is a pawn up.} Bh5 {[%emt 0:01:33][%cal Og8f8]} 32. g4 $1 {[%emt 0:01:01][%cal Bg3g4,Bg4g5][%mdl 32]} Bg6 {[%emt 0:01:00][%cal Og8f8]} 33. Rf1 $1 {[%emt 0:00:11]} Rd8 {[%emt 0:01:36][%cal Od8e8]} 34. g5 {[%emt 0:00:05] Threatening mate with e7.} (34. e7 Re8 35. Kg2 Bxe4+ (35... Rxe7 36. Kg3 $17) 36. Kg3 Rxe7 $15) 34... Re8 {[%emt 0:01:03]} 35. Bf5 $1 {[%emt 0:01:41]} Bh5 {[%emt 0:01:28]} 36. Rf2 $1 {[%emt 0:00:23] Inhibits Be2.} Re7 {[%emt 0:00:58]} (36... c5 $142 37. b3 Bg6) 37. Rd2 {[%emt 0:00:13]} Be8 {[%emt 0:01:38]} 38. Kf2 {[%emt 0:00:32]} Kf8 {[%emt 0:01:03]} 39. Ke3 {[%emt 0:00:10]} (39. Bxh7 $2 g6 $19 (39... Rxe6 40. Bf5 $14)) 39... g6 {[%emt 0:00:38]} 40. Bg4 {[%emt 0:00:03]} c5 {[%emt 0:00:44]} 41. Rf2+ {[%emt 0:01:18]} Kg7 {[%emt 0:00:14]} 42. Rc2 {[%emt 0:01:37] White is more active.} b6 {[%emt 0:00:02] [#]} (42... Rc7 $16 43. Rd2 Rc8) 43. b4 $1 {[%emt 0:00:18][%mdl 512]} cxb4 {[%emt 0:00:44] [#]} (43... Rc7 44. bxc5) 44. Kd4 $1 {[%emt 0:01:10]} Ba4 {[%emt 0:01:28]} (44... a5 $142 45. Kd5 a4) 45. Rc1 {[%emt 0:00:17]} ({Don't do} 45. Rc8 $6 b3 46. axb3 Bxb3 $18) 45... b3 $2 {[%emt 0:00:52]} (45... h5) 46. axb3 {[%emt 0:00:37]} Bxb3 {[%emt 0:00:08][%cal Oa7a5]} 47. Rc3 {[%emt 0:00:03]} Ba4 {[%emt 0:02:04] [#]} (47... Bxe6 $142 48. Bxe6 Rxe6) 48. Kd5 $1 {[%emt 0:00:27] Threatens to win with Kd6.} b5 {[%emt 0:00:43][%cal Bb6b5,Bb5b4][%mdl 32]} 49. Kd6 {[%emt 0:04:15]} b4 {[%emt 0:00:38]} 50. Rf3 $2 {[%emt 0:00:35]} ({Less strong is} 50. Rc8 Rb7 $11) (50. Rc4 $18) 50... Rb7 $11 {[%emt 0:00:20] and ...b3 should not be overlooked} 51. Rf7+ {[%emt 0:00:36]} Rxf7 {[%emt 0:00:10]} 52. exf7 {[%emt 0:00:03]} Kf8 $2 {[%emt 0:01:04][%mdl 8192]} (52... Kxf7 $11 53. Bd7 Bxd7 54. Kxd7 b3) 53. e6 {[%emt 0:01:12][%cal Be5e6,Be6e7][%mdl 32]} b3 {[%emt 0:00:29]} 54. e7+ {[%emt 0:00:05]} 1-0

[Event "15th Chennai GM Open 2025"]
[Site "Chennai"]
[Date "2025.01.07"]
[Round "8.11"]
[White "Dhananjay S"]
[Black "Slizhevsky, Alexander"]
[Result "0-1"]
[ECO "A29"]
[WhiteElo "2270"]
[BlackElo "2340"]
[Annotator "TA"]
[PlyCount "96"]
[EventDate "2025.01.02"]
[EventType "swiss"]
[EventCountry "IND"]
[SourceTitle "playchess.com"]
[Source "ChessBase"]
[SourceQuality "1"]
[TimeControl "5400+30"]

{[%evp 19,96,0,4,5,28,-10,0,0,0,0,0,0,0,-33,2,-56,-50,-55,-31,-35,-35,-43,-18,-130,-30,-28,-29,-25,-25,-12,-20,-66,-62,-116,-123,-124,-70,-100,-86,-100,-114,-199,-166,-172,-185,-178,-166,-178,-166,-204,-198,-238,-204,-291,-291,-283,-205,-295,-280,-396,-389,-420,-414,-371,-375,-487,-374,-430,-429,-412,-308,-465,-446,-437,-428,-511,-473,-510,-419]} 1. c4 {[%emt 0:00:03]} e5 {[%emt 0:01:50]} 2. Nc3 {[%emt 0:00:04]} Nf6 {[%emt 0:00:11]} 3. Nf3 {[%emt 0:00:03]} Nc6 {[%emt 0:00:14]} 4. g3 {[%emt 0:00:05]} d5 {[%emt 0:00:10]} 5. cxd5 {[%emt 0:00:02]} Nxd5 {[%emt 0:00:04]} 6. Bg2 {[%emt 0:00:04]} Nb6 {[%emt 0:00:02]} 7. O-O {[%emt 0:00:07]} Be7 {[%emt 0:00:04]} 8. b3 {[%emt 0:00:03]} O-O {[%emt 0:00:09]} 9. Bb2 {[%emt 0:00:02]} Re8 {[%emt 0:00:10]} 10. Rc1 {[%emt 0:00:02]} Bf8 {[%emt 0:00:08]} 11. Ne4 {[%emt 0:01:35][%cal Oc1c6]} a5 {[%emt 0:04:23]} 12. Nc5 {[%emt 0:20:06]} (12. Rxc6 {is interesting.} bxc6 13. Nxe5 Bb7 14. Qc2) 12... a4 {[%emt 0:18:20]} 13. Nxa4 {[%emt 0:46:02]} Nxa4 {[%emt 0:01:54]} 14. bxa4 {[%emt 0:00:02][%cal Oc1c6]} e4 {[%emt 0:11:15]} 15. Ne1 {[%emt 0:02:12][%cal Bf3e1,Be1c2,Bc2e3][%mdl 32]} Qd5 {[%emt 0:02:21]} 16. Qc2 {[%emt 0:11:10]} Bf5 {[%emt 0:19:53][%cal Oc6b4]} 17. Qc3 {[%emt 0:06:43]} (17. d3 $11) 17... Rxa4 $15 {[%emt 0:08:21][%cal Of5g4]} 18. Nc2 {[%emt 0:00:36]} Rxa2 {[%emt 0:06:44]} 19. Ne3 {[%emt 0:00:15]} Qb5 {[%emt 0:03:04][%csl LRb2,LRe2]} 20. Rb1 {[%emt 0:01:54]} Bc8 $36 {[%emt 0:03:46][%mdl 2048] Black is pushing.} 21. f3 {[%emt 0:01:16]} (21. d3 $11 {keeps the balance.}) 21... Qc5 {[%emt 0:04:50] Black is more active.} (21... Qxe2 22. fxe4 Qb5 23. Kh1 $15) (21... Re5 $17 {and ...Rc5 would now be decisive} 22. Ba1 Qxe2) 22. fxe4 $11 {[%emt 0:00:23]} Qxc3 {[%emt 0:00:17]} 23. Bxc3 {[%emt 0:00:34][%cal Oe4e5]} Bc5 {[%emt 0:00:37]} 24. Kf2 {[%emt 0:01:33]} Nd4 {[%emt 0:02:48]} 25. Ke1 {[%emt 0:03:37]} (25. Rfd1 $11) 25... c6 $15 {[%emt 0:02:31]} 26. Ra1 {[%emt 0:01:40]} (26. e5 $15) 26... Rxa1+ $17 {[%emt 0:01:04]} 27. Bxa1 {[%emt 0:00:01]} Be6 {[%emt 0:01:45]} ({Black should try} 27... Nb3 $17 28. Nc2 Nxa1 29. Nxa1 b5) 28. Bb2 {[%emt 0:01:05]} g6 {[%emt 0:01:08]} 29. Kf2 {[%emt 0:00:38]} Rd8 {[%emt 0:02:46]} 30. Bc3 {[%emt 0:02:07]} (30. Rb1 $17) 30... Nb5 {[%emt 0:00:41]} 31. Kf3 {[%emt 0:01:07]} Nxc3 {[%emt 0:00:52]} 32. dxc3 {[%emt 0:00:01]} h5 {[%emt 0:00:28]} 33. Ra1 {[%emt 0:01:15]} Kg7 {[%emt 0:00:22]} 34. h3 {[%emt 0:00:27]} Rd2 {[%emt 0:01:13]} 35. Rb1 {[%emt 0:00:32]} b6 {[%emt 0:01:04]} 36. g4 {[%emt 0:00:27]} (36. h4) 36... hxg4+ $19 {[%emt 0:00:50]} 37. hxg4 {[%emt 0:00:01]} Ra2 {[%emt 0:00:19]} 38. Rd1 {[%emt 0:00:48]} (38. Rc1 {was worth a try.}) 38... Kf6 {[%emt 0:00:36]} 39. Rd3 {[%emt 0:00:46]} (39. Bh3 $142) 39... b5 {[%emt 0:00:32]} 40. Kf4 {[%emt 0:00:15]} g5+ {[%emt 0:00:38]} ({And not} 40... Rxe2 41. e5+ Kg7 42. Bxc6 $15) 41. Kf3 {[%emt 0:00:44]} Ke5 {[%emt 0:00:17]} 42. Bf1 {[%emt 0:00:12]} Ra4 {[%emt 0:01:09]} 43. Nf5 {[%emt 0:00:16]} Rxe4 {[%emt 0:00:20]} 44. e3 {[%emt 0:00:01] Repels Rf4+} Rxg4 {[%emt 0:01:04]} 45. Nd4 {[%emt 0:01:32]} (45. Kxg4 $142 Bxf5+ 46. Kxg5) 45... Bxd4 {[%emt 0:00:53]} 46. cxd4+ {[%emt 0:00:01]} Kd6 {[%emt 0:00:12]} 47. Ra3 {[%emt 0:00:26]} Rh4 {[%emt 0:00:08]} 48. Ra6 {[%emt 0:00:46]} Bd5+ {[%emt 0:00:36]} 0-1

[Event "15th Chennai GM Open 2025"]
[Site "Chennai"]
[Date "2025.01.07"]
[Round "8.12"]
[White "Rios Gomez, Cristhian Camilo"]
[Black "Sri Sai Baswanth P"]
[Result "1-0"]
[ECO "B45"]
[WhiteElo "2435"]
[BlackElo "2161"]
[Annotator "TA"]
[PlyCount "115"]
[EventDate "2025.01.02"]
[EventType "swiss"]
[EventCountry "IND"]
[SourceTitle "playchess.com"]
[Source "ChessBase"]
[SourceQuality "1"]
[TimeControl "5400+30"]

{[%evp 17,115,20,24,12,49,29,30,30,29,33,38,32,64,14,0,0,25,12,9,21,21,27,45,0,88,64,109,81,85,91,102,103,86,86,128,136,133,133,113,104,92,76,91,89,72,36,36,0,0,0,0,0,0,0,0,0,0,0,0,0,0,0,0,0,8,4,8,8,8,8,8,8,9,10,83,93,249,223,1053,968,5189,2638,29967,29971,29974,29976,29976,29977,29977,29978,29978,29979,29980,29981,29982,29983,29983,29984,29985,29986]} 1. e4 {[%emt 0:00:09]} c5 {[%emt 0:00:19]} 2. Nf3 {[%emt 0:00:24]} e6 {[%emt 0:00:02]} 3. d4 {[%emt 0:00:19]} cxd4 {[%emt 0:00:06]} 4. Nxd4 {[%emt 0:00:06]} Nf6 {[%emt 0:00:05]} 5. Nc3 {[%emt 0:00:12]} Nc6 {[%emt 0:00:06]} 6. Ndb5 {[%emt 0:00:10]} Bc5 {[%emt 0:00:31]} 7. Bf4 {[%emt 0:00:14]} O-O {[%emt 0:00:07] B45: Sicilian Four Knights.} 8. Bc7 {[%emt 0:00:09]} Qe7 {[%emt 0:00:05]} 9. Bd6 $1 {[%emt 0:00:07]} Bxd6 {[%emt 0:00:05]} 10. Qxd6 {[%emt 0:00:10]} Qd8 {[%emt 0:00:03]} 11. O-O-O {[%emt 0:00:12]} (11. Nc7 $5 Rb8 12. Rd1 $14) 11... a6 {[%emt 0:00:06]} 12. Nd4 $1 {[%emt 0:00:07]} Ne7 {[%emt 0:00:14]} 13. a4 {[%emt 0:00:08]} Ne8 {[%emt 0:06:45]} 14. Qb4 {[%emt 0:00:14]} Rb8 $146 {[%emt 0:01:59]} ({Predecessor:} 14... d6 15. e5 d5 16. Bd3 a5 17. Qa3 Nc7 18. f4 Nc6 19. Ncb5 Nxd4 20. Nxd4 Bd7 {½-½ Chen,Q (2481)-Wan,Y (2498) CHN-chT Div-A 2024 (9.1)}) 15. Bc4 {[%emt 0:06:32]} ({Of course not} 15. Bxa6 e5 16. Nf3 Nc6 $11 (16... bxa6 $2 17. Qxb8 Nc6 18. Qa8 $18)) (15. h4 $14) 15... d6 {[%emt 0:18:08]} 16. f4 {[%emt 0:03:01]} Bd7 {[%emt 0:01:43]} 17. e5 {[%emt 0:04:07]} Nc6 {[%emt 0:15:16]} 18. Nxc6 {[%emt 0:03:55]} bxc6 {[%emt 0:00:46]} 19. Qa3 {[%emt 0:00:06]} d5 {[%emt 0:00:25]} 20. Bd3 $1 {[%emt 0:03:50]} (20. Bxa6 Qa5 21. Bd3 c5 $15) 20... f5 {[%emt 0:23:21] [#]} (20... Qb6 $1 $11) 21. a5 $1 $16 {[%emt 0:01:14]} ({Weaker is} 21. Bxa6 Qa5 22. Be2 Rb4 $15) 21... Nc7 {[%emt 0:01:00]} 22. Na4 {[%emt 0:00:37]} c5 {[%emt 0:05:12]} 23. Nxc5 {[%emt 0:02:01]} Qe7 {[%emt 0:01:37]} 24. Nxd7 {[%emt 0:07:38]} Qxd7 {[%emt 0:00:01]} 25. Qd6 {[%emt 0:00:16]} Qxd6 {[%emt 0:00:44]} 26. exd6 {[%emt 0:00:08]} Nb5 {[%emt 0:00:02]} 27. Rhe1 {[%emt 0:01:09]} Kf7 {[%emt 0:00:34]} 28. d7 {[%emt 0:01:33]} Nd6 {[%emt 0:06:41]} 29. Re5 {[%emt 0:09:26]} Rfd8 {[%emt 0:05:12]} 30. Rde1 {[%emt 0:03:20]} ({Much worse is} 30. Bxa6 $6 Ra8 31. Bd3 Rxa5 $11) 30... Ne4 {[%emt 0:00:26]} 31. Bxe4 {[%emt 0:00:09]} dxe4 {[%emt 0:00:06]} 32. Rd1 {[%emt 0:01:41]} Rb7 {[%emt 0:00:39]} 33. c3 {[%emt 0:00:47]} Rbxd7 {[%emt 0:00:11]} 34. Rxd7+ {[%emt 0:00:07]} Rxd7 {[%emt 0:00:03]} 35. b4 {[%emt 0:00:29]} Ke7 {[%emt 0:01:05]} 36. g4 {[%emt 0:08:46]} g6 {[%emt 0:03:03]} 37. gxf5 {[%emt 0:01:56]} gxf5 {[%emt 0:00:05]} 38. b5 {[%emt 0:00:41]} axb5 {[%emt 0:00:07]} 39. Rxb5 {[%emt 0:00:05]} Rd6 {[%emt 0:05:56]} 40. Kc2 {[%emt 0:02:45]} Kd7 {[%emt 0:03:42]} 41. Rb7+ {[%emt 0:06:33]} Kc8 {[%emt 0:00:01]} 42. Rxh7 {[%emt 0:00:16]} Ra6 {[%emt 0:00:01]} 43. h4 {[%emt 0:02:05]} Rxa5 {[%emt 0:00:00]} 44. h5 {[%emt 0:00:01]} Ra2+ {[%emt 0:00:31]} 45. Kd1 {[%emt 0:00:10]} Rh2 {[%emt 0:02:47] [#]} (45... e5 $11 {keeps the balance.} 46. fxe5 Rh2) 46. h6 $1 $16 {[%emt 0:00:04]} Kb8 $2 {[%emt 0:00:29]} (46... e3 $16 {was called for.}) 47. c4 $18 {[%emt 0:00:29]} Kc8 $2 {[%emt 0:00:13]} (47... Rh1+ 48. Ke2 Rh2+ 49. Ke3 Rh3+ 50. Kd4 Rd3+ 51. Kc5 Rh3) 48. c5 $18 {[%emt 0:00:40]} e3 {[%emt 0:00:53]} 49. Rh8+ {[%emt 0:01:19]} Kc7 {[%emt 0:00:37]} 50. h7 {[%emt 0:00:05]} Kb7 {[%emt 0:00:38]} 51. c6+ {[%emt 0:01:11]} Kxc6 {[%emt 0:01:49]} 52. Rc8+ {[%emt 0:00:06]} Kd5 {[%emt 0:00:11]} 53. h8=Q {[%emt 0:00:08]} Rxh8 {[%emt 0:00:10]} 54. Rxh8 {[%emt 0:00:05]} Ke4 {[%emt 0:00:03]} 55. Re8 {[%emt 0:00:18]} Kxf4 {[%emt 0:00:27]} 56. Rxe6 {[%emt 0:00:05]} Kf3 {[%emt 0:00:04]} 57. Ke1 {[%emt 0:00:04]} f4 {[%emt 0:00:09]} 58. Re8 {[%emt 0:00:06]} 1-0

[Event "15th Chennai GM Open 2025"]
[Site "Chennai"]
[Date "2025.01.07"]
[Round "8.13"]
[White "Vignesh B"]
[Black "Fedorov, Alexei"]
[Result "0-1"]
[ECO "B30"]
[WhiteElo "2135"]
[BlackElo "2409"]
[Annotator "TA"]
[PlyCount "67"]
[EventDate "2025.01.02"]
[EventType "swiss"]
[EventCountry "IND"]
[SourceTitle "playchess.com"]
[Source "ChessBase"]
[SourceQuality "1"]
[TimeControl "5400+30"]

{[%evp 9,67,5,57,54,62,14,24,12,18,24,20,15,16,-53,-35,-35,-40,-40,-28,-73,-72,-226,-224,-195,-222,-282,-270,-306,-260,-253,-201,-209,-215,-315,-315,-332,-368,-348,-359,-395,-347,-347,-349,-349,-340,-334,-341,-571,-580,-540,-484,-632,-638,-641,-631,-691,-671,-840,-808,-927]} 1. e4 {[%emt 0:03:38]} c5 {[%emt 0:00:06]} 2. Nf3 {[%emt 0:00:06]} Nc6 {[%emt 0:01:03]} 3. Bb5 {[%emt 0:00:35]} e6 {[%emt 0:00:06]} 4. O-O {[%emt 0:00:27]} Nge7 {[%emt 0:00:05]} 5. Re1 {[%emt 0:00:20]} b6 {[%emt 0:02:12]} ({Black should play} 5... a6 $11 6. Bf1 d5) 6. c3 $14 {[%emt 0:00:46]} a6 {[%emt 0:02:08]} 7. Bf1 {[%emt 0:01:29]} (7. Ba4 $14 {might be stronger.}) 7... d5 $11 {[%emt 0:00:35]} 8. exd5 {[%emt 0:25:20] White has an edge.} Nxd5 {[%emt 0:00:05]} 9. d4 {[%emt 0:00:19]} cxd4 {[%emt 0:00:06]} 10. Nxd4 {[%emt 0:02:25]} Bb7 {[%emt 0:00:06]} 11. Bc4 {[%emt 0:10:37]} ({White should try} 11. Nxc6 $11 Bxc6 12. Nd2) 11... Nxd4 $15 {[%emt 0:04:02]} 12. Qxd4 {[%emt 0:00:56]} Bc5 {[%emt 0:02:07]} 13. Qe4 {[%emt 0:12:46]} (13. Qxg7 Qh4 (13... Bxf2+ 14. Kf1 $14) 14. Qg3 (14. Qxh8+ $2 Kd7 $19) 14... Qxc4 $17) 13... Qf6 {[%emt 0:03:48]} 14. Qe2 {[%emt 0:08:52]} Rd8 {[%emt 0:06:23] Black is more active.} 15. b4 $2 {[%emt 0:10:55]} (15. Na3 $17) 15... Nxb4 $19 {[%emt 0:06:45]} (15... Nxc3 16. Nxc3 Bxb4 17. Bb5+ (17. Bxa6 Bxa6 18. Qxa6 O-O $11) (17. Qh5 O-O $17) 17... Kf8 (17... axb5 $2 18. Qxb5+ Rd7 19. Qxb4 $18) 18. Rd1 Rxd1+ (18... Bxc3 19. Rxd8+ Qxd8 20. Ba3+ Kg8 21. Rd1 $11) (18... axb5 19. Bb2 $15) 19. Qxd1 axb5 (19... Bxc3 20. Qd6+ Qe7 21. Qb8+) (19... Bc5 $2 20. Be3 $18) 20. Nxb5 $17) 16. cxb4 {[%emt 0:17:56] [#]} Bd4 {[%emt 0:00:09]} (16... Qxa1 $2 17. Bb2 $18 (17. Bxa6 $2 Bxa6 18. Qxa6 Bd4 $19) (17. Bxa6 $2 Bxa6 18. Qxa6 Bd4 $19)) 17. Be3 {[%emt 0:00:42]} Bxe3 {[%emt 0:02:36]} ({Resist} 17... Bxa1 18. Bxb6 Rd7 19. b5 $19) 18. Na3 {[%emt 0:00:49]} Bd4 {[%emt 0:01:10]} 19. Rad1 {[%emt 0:00:16]} Qg5 $40 {[%emt 0:08:31][%mdl 128] White is in trouble.} 20. Qf1 {[%emt 0:00:44] White is weak on the dark squares} b5 {[%emt 0:01:20]} 21. Bb3 {[%emt 0:00:26]} (21. Bxb5+ $142 axb5 22. Qxb5+ Qxb5 23. Nxb5) 21... O-O {[%emt 0:01:46]} 22. Nc2 {[%emt 0:00:26]} Bc3 {[%emt 0:00:45]} 23. Rxd8 {[%emt 0:00:29]} Rxd8 {[%emt 0:00:09]} ({Don't play} 23... Qxd8 24. Rd1 Qc7 25. h3 $19) 24. Rb1 {[%emt 0:00:36]} Rd2 {[%emt 0:01:59]} 25. Ne3 {[%emt 0:00:08]} Bxb4 {[%emt 0:02:45] A strong pair of Bishops.} ({But not} 25... Bd4 26. Re1 $19) 26. Rd1 {[%emt 0:00:53]} h5 {[%emt 0:01:23]} 27. Rxd2 {[%emt 0:00:30]} Bxd2 {[%emt 0:00:05]} 28. Nd1 {[%emt 0:00:13]} (28. Qe2 Bc1 29. h3) 28... h4 {[%emt 0:00:34] Black is clearly winning.} 29. h3 {[%emt 0:00:26]} g6 {[%emt 0:01:09]} 30. Nb2 {[%emt 0:00:20]} Bc3 {[%emt 0:00:58]} 31. Nd3 {[%emt 0:00:21]} a5 {[%emt 0:01:24]} 32. Bd1 {[%emt 0:01:11]} a4 {[%emt 0:00:24] [#] And now ...Bd5 would win.} 33. Bg4 {[%emt 0:00:16]} Bd5 {[%emt 0:00:57]} 34. Qb1 {[%emt 0:01:17] Black took control after the opening.   Weighted Error Value: White=0.44/Black=0.12 (very precise) .  Mistake:       	White=5     	---        Inaccurate:     	White=2     	---        OK:         	White=9     	Black=15     Best:        	White=1     	Black=1} 0-1